{"text_format":"1","workbook":"xlsx","n_sheets":18,"sheets":["Nastavení","Seznam účastníků","NŽH","NŽD","MŽH","MŽD","SŽD","MDH","MDD","MA","ŽA","MB","ŽB","D+D","Krycí list","Výsledková listina","Pohár","Zdroj"],"not_rendered":{"charts":0,"images":64,"macros":1,"external_links":0,"defined_names":21,"comments":1,"pivot_tables":0},"unopened":[],"bounds":{"document_bytes":16777216,"sheet_cells":100000,"rows_first":2000,"rows_last":500,"rows_between":2000,"halvings":0,"cell_chars":16384,"cell_head_chars":4096},"cells_cut":0,"cells_raw":0,"read":"whole","date_system":"1900"}

{"sheet":"Nastavení","index":0,"n_rows":31,"n_cols":32,"rows_kept":31,"cut":false,"hidden":false,"merged":[]}
[]
[]
[]
[]
[]
[]
[]
[]
[]
[]
[]
[null,"Nepřesouvat a neměnit!!!!"]
[null,null,null,null,null,null,null,null,null,null,null,null,null,null,null,null,null,{"$f":"B14","v":"V"},{"$f":"B15","v":"S"},{"$f":"B16","v":"Oa"},{"$f":"B17","v":"Om"},{"$f":"B18","v":"LL"},{"$f":"B19","v":"U"},{"$f":"B20","v":"M"},{"$f":"B21","v":"P"},{"$f":"B22","v":"TT"},{"$f":"B23","v":"D"},{"$f":"B24","v":"KPČ"},{"$f":"B25","v":"MKPČ"},"Body","Trať"]
[null,"V","odhad vzdálenosti",null,null,"PM","postup z mistrovství",null,null,"NŽH","Nejmladší žáci",null,"<10 let",{"$f":"CONCATENATE(J14,\"-\",K14,\"(\",M14,\")\")","v":"NŽH-Nejmladší žáci(<10 let)"},null,null,null,"Ne","Ne","Ne","Ano","Ano","Ano","Ano","Ne","Ano","Ano","Ano","Ne","Ano","M"]
[null,"S","stavba stanu",null,null,"PP","postup z kraje",null,null,"NŽD","Nejmladší žákyně",null,"<10 let","NŽD-Nejmladší žákyně(<10 let)",null,null,null,"Ne","Ne","Ne","Ano","Ano","Ano","Ano","Ne","Ano","Ano","Ano","Ne","Ano","M"]
[null,"Oa","azimuty",null,null,"TM","součet trestných minut",null,null,"MŽH","Mladší žáci",null,"11-12 let","MŽH-Mladší žáci(11-12 let)",null,null,null,24,"Ne","Ano","Ano","Ano","Ano","Ano","Ne","Ano","Ano","Ano","Ne","Ano","B"]
[null,"Om","orientace mapy",null,null,null,null,null,null,"MŽD","Mladší žákyně",null,"11-12 let","MŽD-Mladší žákyně(11-12 let)",null,null,null,24,"Ne","Ano","Ano","Ano","Ano","Ano","Ne","Ano","Ano","Ano","Ne","Ano","B"]
[null,"LL","lanová lávka",null,null,"mistrovské závody ČR",null,null,null,"SŽH","Starší žáci",null,"13-14 let","SŽH-Starší žáci(13-14 let)",null,null,null,24,"Ne","Ano","Ano","Ano","Ano","Ano","Ne","Ano","Ano","Ano","Ne","Ano","B"]
[null,"U","uzly",null,null,"závod I. Stupně \"Český pohár\"",null,null,null,"SŽD","Starší žákyně",null,"13-14 let","SŽD-Starší žákyně(13-14 let)",null,null,null,24,"Ne","Ano","Ano","Ano","Ano","Ano","Ne","Ano","Ano","Ano","Ne","Ano","B"]
[null,"M","míček",null,null,"závod II. stupně \"Mistrovství kraje\"",null,null,null,"MDH","Mladší dorostenci",null,"15-16 let","MDH-Mladší dorostenci(15-16 let)",null,null,null,17,"Ne","Ano","Ano","Ano","Ano","Ano","Ne","Ano","Ano","Ano","Ne","Ano","C"]
[null,"P","plížení",null,null,"závod III. stupně \"Krajský pohár\"",null,null,null,"MDD","Mladší dorostenky",null,"15-16 let","MDD-Mladší dorostenky(15-16 let)",null,null,null,17,"Ne","Ano","Ano","Ano","Ano","Ano","Ne","Ano","Ano","Ano","Ne","Ano","C"]
[null,"TT","turistické a topologické značky",null,null,"oddílový přebor",null,null,null,"SDH","Starší dorostenci",null,"17-18 let","SDH-Starší dorostenci(17-18 let)",null,null,null,17,"Ne","Ano","Ano","Ano","Ano","Ano","Ne","Ano","Ano","Ano","Ne","Ano","C"]
[null,"D","dřeviny",null,null,null,null,null,null,"SDD","Starší dorostenky",null,"17-18 let","SDD-Starší dorostenky(17-18 let)",null,null,null,17,"Ne","Ano","Ano","Ano","Ano","Ano","Ne","Ano","Ano","Ano","Ne","Ano","C"]
[null,"KPČ","kulturně poznávací činnost",null,null,null,null,null,null,"MA","Muži A",null,"19-35 let","MA-Muži A(19-35 let)",null,null,null,17,"Ne","Ano","Ano","Ano","Ano","Ano","Ne","Ano","Ano","Ano","Ne","Ano","C"]
[null,"MKPČ","mezinárodní kulturně poznávací činnost",null,null,null,null,null,null,"ŽA","Ženy A",null,"19-35 let","ŽA-Ženy A(19-35 let)",null,null,null,17,"Ne","Ano","Ano","Ano","Ano","Ano","Ne","Ano","Ano","Ano","Ne","Ano","C"]
[null,null,null,null,null,null,null,null,null,"MB","Muži B",null,">36 let","MB-Muži B(>36 let)",null,null,null,17,"Ne","Ano","Ano","Ano","Ano","Ano","Ne","Ano","Ano","Ano","Ne","Ano","C"]
[null,null,null,null,null,null,null,null,null,"ŽB","Ženy B",null,">36 let","ŽB-Ženy B(>36 let)",null,null,null,17,"Ne","Ano","Ano","Ano","Ano","Ano","Ne","Ano","Ano","Ano","Ne","Ano","C"]
[null,"verze V20 ke dni 4.2.2024",null,null,null,null,null,null,null,"D+D","Dítě s doprovodem",null,null,{"$f":"CONCATENATE(J28,\"-\",K28)","v":"D+D-Dítě s doprovodem"},null,null,null,"Ne","Ne","Ne","Ano","Ano","Ano","Ano","Ne","Ano","Ano","Ano","Ne","Ne",null,"nepočítají se body"]
[null,null,null,null,null,null,null,null,null,"DVOJ","Dvojice",null,null,{"$f":"CONCATENATE(J29,\"-\",K29)","v":"DVOJ-Dvojice"},null,null,null,"Ne","Ne","Ne","Ano","Ano","Ano","Ano","Ne","Ano","Ano","Ano","Ne","Ne",null,"nepočítají se body"]
[null,null,null,null,null,null,null,null,null,"MS-M","Mimo soutěž-modrá trať",null,null,{"$f":"CONCATENATE(J30,\"-\",K30)","v":"MS-M-Mimo soutěž-modrá trať"},null,null,null,"Ne","Ne","Ne","Ano","Ano","Ano","Ano","Ne","Ano","Ano","Ano","Ne","Ne",null,"nepočítají se body"]
[null,null,null,null,null,null,null,null,null,"MS-B","Mimo soutěž-bílá trať",null,null,{"$f":"CONCATENATE(J31,\"-\",K31)","v":"MS-B-Mimo soutěž-bílá trať"},null,null,null,"Ne","Ne","Ano","Ano","Ano","Ano","Ano","Ne","Ano","Ano","Ano","Ne","Ne",null,"nepočítají se body"]

{"sheet":"Seznam účastníků","index":1,"n_rows":27,"n_cols":17,"rows_kept":27,"cut":false,"hidden":false,"merged":[[0,1,0,5],[1,1,1,5],[2,1,2,5],[3,1,3,3]]}
["Závod:","Mistrovský závod Karlovarského kraje 2024",null,null,null,null,null,null,null,null,null,null,null,null,null,null,{"$f":"Nastavení!F18","v":"mistrovské závody ČR"}]
["Datum:","06.04.2024",null,null,null,null,null,null,null,null,null,null,null,null,null,null,{"$f":"Nastavení!F19","v":"závod I. Stupně \"Český pohár\""}]
["Místo:","Bukovany",null,null,null,null,null,null,null,null,null,null,null,null,null,null,{"$f":"Nastavení!F20","v":"závod II. stupně \"Mistrovství kraje\""}]
["Typ závodu:","závod II. stupně \"Mistrovství kraje\"",null,null,null,null,null,null,null,null,null,null,null,null,null,null,{"$f":"Nastavení!F21","v":"závod III. stupně \"Krajský pohár\""}]
["Body:","1.KP",null,null,null,null,null,null,null,null,null,null,null,null,null,null,{"$f":"Nastavení!F22","v":"oddílový přebor"}]
[]
["Startovní\nčíslo","Kat.","Přijmení","Jméno","Ročník","Oddíl","Přijmení","Jméno","Ročník","Oddíl","Startovní čas"]
[1,"MDH","Pouzar","Jakub",2008,"Kraslice",null,null,null,null,"0.00.00"]
[2,"D+D","Blaschkeová","Nicol",2017,"Tuláci Bukovany",null,null,null,null,"0.03.00"]
[3,"MA","Brabec","Jiří",2000,"Kraslice",null,null,null,null,"0.06.00"]
[4,"ŽA","Wágnerová","Magdalena",2003,"Kraslice",null,null,null,null,"0.06.00"]
[5,"SŽD","Jelínková","Nikola",2011,"Pionýr Habartov",null,null,null,null,"0.09.00"]
[6,"ŽB","Procházková","Ladislava",1974,"Kraslice",null,null,null,null,"0.12.00"]
[7,"MDD","Richlíková","Adéla",2009,"Pionýr Habartov",null,null,null,null,"0.15.00"]
[8,"D+D","Jetel","Martin",2017,"Pionýr Habartov",null,null,null,null,"0.18.00"]
[9,"MŽH","Hanuš","David",2012,"Tuláci Bukovany",null,null,null,null,"0.21.00"]
[10,"NŽD","Forejtová","Laura",2014,"Pionýr Habartov",null,null,null,null,"0.24.00"]
[11,"D+D","Kováč","František",2016,"Pionýr Habartov",null,null,null,null,"0.27.00"]
[12,"MDD","Kováčová ","Simona",2009,"Pionýr Habartov",null,null,null,null,"0.30.00"]
[13,"MŽD","Richlíková","Tereza",2012,"Pionýr Habartov",null,null,null,null,"0.33.00"]
[14,"MŽH","Kdolský","Václav",2012,"Pionýr Habartov",null,null,null,null,"0.36.00"]
[15,"NŽD","Forejtová","Viktorie",2016,"Pionýr Habartov",null,null,null,null,"0.39.00"]
[16,"NŽH","Pražák ","Leoš",2014,"Pionýr Habartov",null,null,null,null,"0.42.00"]
[17,"ŽA","Wágnerová","Marie",2001,"Kraslice",null,null,null,null,"0.45.00"]
[18,"MB","Wagner","Vojtěch",1962,"Kraslice",null,null,null,null,"0.48.00"]
[19,"NŽH","Glos","Dominik",2016,"Tuláci Bukovany",null,null,null,null,"0.48.00"]
[20,"ŽA","Glosová","Kateřina",1992,"Tuláci Bukovany",null,null,null,null,"0.51.00"]

{"sheet":"NŽH","index":2,"n_rows":8,"n_cols":42,"rows_kept":8,"cut":false,"hidden":false,"merged":[[0,1,0,41],[3,1,3,41],[4,11,4,23],[4,27,4,33],[4,40,4,41]]}
[null,{"$f":"CONCATENATE('Seznam účastníků'!B1,\", \",'Seznam účastníků'!B2:C2,\" - \",'Seznam účastníků'!B3)","v":"Mistrovský závod Karlovarského kraje 2024, 06.04.2024 - Bukovany"}]
[]
[]
[null,"Nejmladší žáci (NŽH)"]
[null,null,null,null,null,null,null,null,null,null,null,"Trestné minuty",null,null,null,null,null,null,null,null,null,null,null,null,"Start","Cíl","V","Zdržení v sekundách",null,null,null,null,null,null,"Zdržení","Čas na trati","Výsledný čas","Body","VT","Postup","Diskvalifikace"]
[null,"Start. číslo","Pořadí","Přijmení","Jméno","Ročník","Oddíl","Přijmení","Jméno","Ročník","Oddíl",{"$f":"Nastavení!R13","v":"V"},{"$f":"Nastavení!S13","v":"S"},{"$f":"Nastavení!T13","v":"Oa"},{"$f":"Nastavení!U13","v":"Om"},{"$f":"Nastavení!V13","v":"LL"},{"$f":"Nastavení!W13","v":"U"},{"$f":"Nastavení!X13","v":"M"},{"$f":"Nastavení!Y13","v":"P"},{"$f":"Nastavení!Z13","v":"TT"},{"$f":"Nastavení!AA13","v":"D"},{"$f":"Nastavení!B24","v":"KPČ"},{"$f":"Nastavení!AE13","v":"Trať"},"TM",null,null,"[m]",{"$f":"L6","v":"V"},{"$f":"M6","v":"S"},{"$f":"O6","v":"Om"},{"$f":"P6","v":"LL"},{"$f":"Q6","v":"U"},{"$f":"R6","v":"M"},{"$f":"S6","v":"P"},null,null,null,null,null,null,null,"Důvod"]
[null,16,null,"Pražák ","Leoš",2014,"Pionýr Habartov",null,null,null,null,null,null,null,null,null,null,null,null,null,null,null,null,null,"0.42.00"]
[null,19,null,"Glos","Dominik",2016,"Tuláci Bukovany",null,null,null,null,null,null,null,null,null,null,null,null,null,null,null,null,null,"0.48.00"]

{"sheet":"NŽD","index":3,"n_rows":8,"n_cols":42,"rows_kept":8,"cut":false,"hidden":false,"merged":[[0,1,0,41],[3,1,3,41],[4,11,4,23],[4,27,4,33],[4,40,4,41]]}
[null,{"$f":"CONCATENATE('Seznam účastníků'!B1,\", \",'Seznam účastníků'!B2:C2,\" - \",'Seznam účastníků'!B3)","v":"Mistrovský závod Karlovarského kraje 2024, 06.04.2024 - Bukovany"}]
[]
[]
[null,"Nejmladší žákyně (NŽD)"]
[null,null,null,null,null,null,null,null,null,null,null,"Trestné minuty",null,null,null,null,null,null,null,null,null,null,null,null,"Start","Cíl","V","Zdržení v sekundách",null,null,null,null,null,null,"Zdržení","Čas na trati","Výsledný čas","Body","VT","Postup","Diskvalifikace"]
[null,"Start. číslo","Pořadí","Přijmení","Jméno","Ročník","Oddíl","Přijmení","Jméno","Ročník","Oddíl",{"$f":"Nastavení!R13","v":"V"},{"$f":"Nastavení!S13","v":"S"},{"$f":"Nastavení!T13","v":"Oa"},{"$f":"Nastavení!U13","v":"Om"},{"$f":"Nastavení!V13","v":"LL"},{"$f":"Nastavení!W13","v":"U"},{"$f":"Nastavení!X13","v":"M"},{"$f":"Nastavení!Y13","v":"P"},{"$f":"Nastavení!Z13","v":"TT"},{"$f":"Nastavení!AA13","v":"D"},{"$f":"Nastavení!B24","v":"KPČ"},{"$f":"Nastavení!AE13","v":"Trať"},"TM",null,null,"[m]",{"$f":"L6","v":"V"},{"$f":"M6","v":"S"},{"$f":"O6","v":"Om"},{"$f":"P6","v":"LL"},{"$f":"Q6","v":"U"},{"$f":"R6","v":"M"},{"$f":"S6","v":"P"},null,null,null,null,null,null,null,"Důvod"]
[null,10,null,"Forejtová","Laura",2014,"Pionýr Habartov",null,null,null,null,null,null,null,null,null,null,null,null,null,null,null,null,null,"0.24.00"]
[null,15,null,"Forejtová","Viktorie",2016,"Pionýr Habartov",null,null,null,null,null,null,null,null,null,null,null,null,null,null,null,null,null,"0.39.00"]

{"sheet":"MŽH","index":4,"n_rows":8,"n_cols":42,"rows_kept":8,"cut":false,"hidden":false,"merged":[[0,1,0,41],[3,1,3,41],[4,11,4,23],[4,27,4,33],[4,40,4,41]]}
[null,{"$f":"CONCATENATE('Seznam účastníků'!B1,\", \",'Seznam účastníků'!B2:C2,\" - \",'Seznam účastníků'!B3)","v":"Mistrovský závod Karlovarského kraje 2024, 06.04.2024 - Bukovany"}]
[]
[]
[null,"Mladší žáci (MŽH)"]
[null,null,null,null,null,null,null,null,null,null,null,"Trestné minuty",null,null,null,null,null,null,null,null,null,null,null,null,"Start","Cíl","V","Zdržení v sekundách",null,null,null,null,null,null,"Zdržení","Čas na trati","Výsledný čas","Body","VT","Postup","Diskvalifikace"]
[null,"Start. číslo","Pořadí","Přijmení","Jméno","Ročník","Oddíl","Přijmení","Jméno","Ročník","Oddíl",{"$f":"Nastavení!R13","v":"V"},{"$f":"Nastavení!S13","v":"S"},{"$f":"Nastavení!T13","v":"Oa"},{"$f":"Nastavení!U13","v":"Om"},{"$f":"Nastavení!V13","v":"LL"},{"$f":"Nastavení!W13","v":"U"},{"$f":"Nastavení!X13","v":"M"},{"$f":"Nastavení!Y13","v":"P"},{"$f":"Nastavení!Z13","v":"TT"},{"$f":"Nastavení!AA13","v":"D"},{"$f":"Nastavení!B24","v":"KPČ"},{"$f":"Nastavení!AE13","v":"Trať"},"TM",null,null,"[m]",{"$f":"L6","v":"V"},{"$f":"M6","v":"S"},{"$f":"O6","v":"Om"},{"$f":"P6","v":"LL"},{"$f":"Q6","v":"U"},{"$f":"R6","v":"M"},{"$f":"S6","v":"P"},null,null,null,null,null,null,null,"Důvod"]
[null,9,null,"Hanuš","David",2012,"Tuláci Bukovany",null,null,null,null,null,null,null,null,null,null,null,null,null,null,null,null,null,"0.21.00"]
[null,14,null,"Kdolský","Václav",2012,"Pionýr Habartov",null,null,null,null,null,null,null,null,null,null,null,null,null,null,null,null,null,"0.36.00"]

{"sheet":"MŽD","index":5,"n_rows":7,"n_cols":42,"rows_kept":7,"cut":false,"hidden":false,"merged":[[0,1,0,41],[3,1,3,41],[4,11,4,23],[4,27,4,33],[4,40,4,41]]}
[null,{"$f":"CONCATENATE('Seznam účastníků'!B1,\", \",'Seznam účastníků'!B2:C2,\" - \",'Seznam účastníků'!B3)","v":"Mistrovský závod Karlovarského kraje 2024, 06.04.2024 - Bukovany"}]
[]
[]
[null,"Mladší žákyně (MŽD)"]
[null,null,null,null,null,null,null,null,null,null,null,"Trestné minuty",null,null,null,null,null,null,null,null,null,null,null,null,"Start","Cíl","V","Zdržení v sekundách",null,null,null,null,null,null,"Zdržení","Čas na trati","Výsledný čas","Body","VT","Postup","Diskvalifikace"]
[null,"Start. číslo","Pořadí","Přijmení","Jméno","Ročník","Oddíl","Přijmení","Jméno","Ročník","Oddíl",{"$f":"Nastavení!R13","v":"V"},{"$f":"Nastavení!S13","v":"S"},{"$f":"Nastavení!T13","v":"Oa"},{"$f":"Nastavení!U13","v":"Om"},{"$f":"Nastavení!V13","v":"LL"},{"$f":"Nastavení!W13","v":"U"},{"$f":"Nastavení!X13","v":"M"},{"$f":"Nastavení!Y13","v":"P"},{"$f":"Nastavení!Z13","v":"TT"},{"$f":"Nastavení!AA13","v":"D"},{"$f":"Nastavení!B24","v":"KPČ"},{"$f":"Nastavení!AE13","v":"Trať"},"TM",null,null,"[m]",{"$f":"L6","v":"V"},{"$f":"M6","v":"S"},{"$f":"O6","v":"Om"},{"$f":"P6","v":"LL"},{"$f":"Q6","v":"U"},{"$f":"R6","v":"M"},{"$f":"S6","v":"P"},null,null,null,null,null,null,null,"Důvod"]
[null,13,null,"Richlíková","Tereza",2012,"Pionýr Habartov",null,null,null,null,null,null,null,null,null,null,null,null,null,null,null,null,null,"0.33.00"]

{"sheet":"SŽD","index":6,"n_rows":7,"n_cols":42,"rows_kept":7,"cut":false,"hidden":false,"merged":[[0,1,0,41],[3,1,3,41],[4,11,4,23],[4,27,4,33],[4,40,4,41]]}
[null,{"$f":"CONCATENATE('Seznam účastníků'!B1,\", \",'Seznam účastníků'!B2:C2,\" - \",'Seznam účastníků'!B3)","v":"Mistrovský závod Karlovarského kraje 2024, 06.04.2024 - Bukovany"}]
[]
[]
[null,"Starší žákyně (SŽD)"]
[null,null,null,null,null,null,null,null,null,null,null,"Trestné minuty",null,null,null,null,null,null,null,null,null,null,null,null,"Start","Cíl","V","Zdržení v sekundách",null,null,null,null,null,null,"Zdržení","Čas na trati","Výsledný čas","Body","VT","Postup","Diskvalifikace"]
[null,"Start. číslo","Pořadí","Přijmení","Jméno","Ročník","Oddíl","Přijmení","Jméno","Ročník","Oddíl",{"$f":"Nastavení!R13","v":"V"},{"$f":"Nastavení!S13","v":"S"},{"$f":"Nastavení!T13","v":"Oa"},{"$f":"Nastavení!U13","v":"Om"},{"$f":"Nastavení!V13","v":"LL"},{"$f":"Nastavení!W13","v":"U"},{"$f":"Nastavení!X13","v":"M"},{"$f":"Nastavení!Y13","v":"P"},{"$f":"Nastavení!Z13","v":"TT"},{"$f":"Nastavení!AA13","v":"D"},{"$f":"Nastavení!B24","v":"KPČ"},{"$f":"Nastavení!AE13","v":"Trať"},"TM",null,null,"[m]",{"$f":"L6","v":"V"},{"$f":"M6","v":"S"},{"$f":"O6","v":"Om"},{"$f":"P6","v":"LL"},{"$f":"Q6","v":"U"},{"$f":"R6","v":"M"},{"$f":"S6","v":"P"},null,null,null,null,null,null,null,"Důvod"]
[null,5,null,"Jelínková","Nikola",2011,"Pionýr Habartov",null,null,null,null,null,null,null,null,null,null,null,null,null,null,null,null,null,"0.09.00"]

{"sheet":"MDH","index":7,"n_rows":7,"n_cols":42,"rows_kept":7,"cut":false,"hidden":false,"merged":[[0,1,0,41],[3,1,3,41],[4,11,4,23],[4,27,4,33],[4,40,4,41]]}
[null,{"$f":"CONCATENATE('Seznam účastníků'!B1,\", \",'Seznam účastníků'!B2:C2,\" - \",'Seznam účastníků'!B3)","v":"Mistrovský závod Karlovarského kraje 2024, 06.04.2024 - Bukovany"}]
[]
[]
[null,"Mladší dorostenci (MDH)"]
[null,null,null,null,null,null,null,null,null,null,null,"Trestné minuty",null,null,null,null,null,null,null,null,null,null,null,null,"Start","Cíl","V","Zdržení v sekundách",null,null,null,null,null,null,"Zdržení","Čas na trati","Výsledný čas","Body","VT","Postup","Diskvalifikace"]
[null,"Start. číslo","Pořadí","Přijmení","Jméno","Ročník","Oddíl","Přijmení","Jméno","Ročník","Oddíl",{"$f":"Nastavení!R13","v":"V"},{"$f":"Nastavení!S13","v":"S"},{"$f":"Nastavení!T13","v":"Oa"},{"$f":"Nastavení!U13","v":"Om"},{"$f":"Nastavení!V13","v":"LL"},{"$f":"Nastavení!W13","v":"U"},{"$f":"Nastavení!X13","v":"M"},{"$f":"Nastavení!Y13","v":"P"},{"$f":"Nastavení!Z13","v":"TT"},{"$f":"Nastavení!AA13","v":"D"},{"$f":"Nastavení!B24","v":"KPČ"},{"$f":"Nastavení!AE13","v":"Trať"},"TM",null,null,"[m]",{"$f":"L6","v":"V"},{"$f":"M6","v":"S"},{"$f":"O6","v":"Om"},{"$f":"P6","v":"LL"},{"$f":"Q6","v":"U"},{"$f":"R6","v":"M"},{"$f":"S6","v":"P"},null,null,null,null,null,null,null,"Důvod"]
[null,1,null,"Pouzar","Jakub",2008,"Kraslice",null,null,null,null,null,null,null,null,null,null,null,null,null,null,null,null,null,"0.00.00"]

{"sheet":"MDD","index":8,"n_rows":8,"n_cols":42,"rows_kept":8,"cut":false,"hidden":false,"merged":[[0,1,0,41],[3,1,3,41],[4,11,4,23],[4,27,4,33],[4,40,4,41]]}
[null,{"$f":"CONCATENATE('Seznam účastníků'!B1,\", \",'Seznam účastníků'!B2:C2,\" - \",'Seznam účastníků'!B3)","v":"Mistrovský závod Karlovarského kraje 2024, 06.04.2024 - Bukovany"}]
[]
[]
[null,"Mladší dorostenky (MDD)"]
[null,null,null,null,null,null,null,null,null,null,null,"Trestné minuty",null,null,null,null,null,null,null,null,null,null,null,null,"Start","Cíl","V","Zdržení v sekundách",null,null,null,null,null,null,"Zdržení","Čas na trati","Výsledný čas","Body","VT","Postup","Diskvalifikace"]
[null,"Start. číslo","Pořadí","Přijmení","Jméno","Ročník","Oddíl","Přijmení","Jméno","Ročník","Oddíl",{"$f":"Nastavení!R13","v":"V"},{"$f":"Nastavení!S13","v":"S"},{"$f":"Nastavení!T13","v":"Oa"},{"$f":"Nastavení!U13","v":"Om"},{"$f":"Nastavení!V13","v":"LL"},{"$f":"Nastavení!W13","v":"U"},{"$f":"Nastavení!X13","v":"M"},{"$f":"Nastavení!Y13","v":"P"},{"$f":"Nastavení!Z13","v":"TT"},{"$f":"Nastavení!AA13","v":"D"},{"$f":"Nastavení!B24","v":"KPČ"},{"$f":"Nastavení!AE13","v":"Trať"},"TM",null,null,"[m]",{"$f":"L6","v":"V"},{"$f":"M6","v":"S"},{"$f":"O6","v":"Om"},{"$f":"P6","v":"LL"},{"$f":"Q6","v":"U"},{"$f":"R6","v":"M"},{"$f":"S6","v":"P"},null,null,null,null,null,null,null,"Důvod"]
[null,7,null,"Richlíková","Adéla",2009,"Pionýr Habartov",null,null,null,null,null,null,null,null,null,null,null,null,null,null,null,null,null,"0.15.00"]
[null,12,null,"Kováčová ","Simona",2009,"Pionýr Habartov",null,null,null,null,null,null,null,null,null,null,null,null,null,null,null,null,null,"0.30.00"]

{"sheet":"MA","index":9,"n_rows":7,"n_cols":42,"rows_kept":7,"cut":false,"hidden":false,"merged":[[0,1,0,41],[3,1,3,41],[4,11,4,23],[4,27,4,33],[4,40,4,41]]}
[null,{"$f":"CONCATENATE('Seznam účastníků'!B1,\", \",'Seznam účastníků'!B2:C2,\" - \",'Seznam účastníků'!B3)","v":"Mistrovský závod Karlovarského kraje 2024, 06.04.2024 - Bukovany"}]
[]
[]
[null,"Muži A (MA)"]
[null,null,null,null,null,null,null,null,null,null,null,"Trestné minuty",null,null,null,null,null,null,null,null,null,null,null,null,"Start","Cíl","V","Zdržení v sekundách",null,null,null,null,null,null,"Zdržení","Čas na trati","Výsledný čas","Body","VT","Postup","Diskvalifikace"]
[null,"Start. číslo","Pořadí","Přijmení","Jméno","Ročník","Oddíl","Přijmení","Jméno","Ročník","Oddíl",{"$f":"Nastavení!R13","v":"V"},{"$f":"Nastavení!S13","v":"S"},{"$f":"Nastavení!T13","v":"Oa"},{"$f":"Nastavení!U13","v":"Om"},{"$f":"Nastavení!V13","v":"LL"},{"$f":"Nastavení!W13","v":"U"},{"$f":"Nastavení!X13","v":"M"},{"$f":"Nastavení!Y13","v":"P"},{"$f":"Nastavení!Z13","v":"TT"},{"$f":"Nastavení!AA13","v":"D"},{"$f":"Nastavení!B24","v":"KPČ"},{"$f":"Nastavení!AE13","v":"Trať"},"TM",null,null,"[m]",{"$f":"L6","v":"V"},{"$f":"M6","v":"S"},{"$f":"O6","v":"Om"},{"$f":"P6","v":"LL"},{"$f":"Q6","v":"U"},{"$f":"R6","v":"M"},{"$f":"S6","v":"P"},null,null,null,null,null,null,null,"Důvod"]
[null,3,null,"Brabec","Jiří",2000,"Kraslice",null,null,null,null,null,null,null,null,null,null,null,null,null,null,null,null,null,"0.06.00"]

{"sheet":"ŽA","index":10,"n_rows":9,"n_cols":42,"rows_kept":9,"cut":false,"hidden":false,"merged":[[0,1,0,41],[3,1,3,41],[4,11,4,23],[4,27,4,33],[4,40,4,41]]}
[null,{"$f":"CONCATENATE('Seznam účastníků'!B1,\", \",'Seznam účastníků'!B2:C2,\" - \",'Seznam účastníků'!B3)","v":"Mistrovský závod Karlovarského kraje 2024, 06.04.2024 - Bukovany"}]
[]
[]
[null,"Ženy A (ŽA)"]
[null,null,null,null,null,null,null,null,null,null,null,"Trestné minuty",null,null,null,null,null,null,null,null,null,null,null,null,"Start","Cíl","V","Zdržení v sekundách",null,null,null,null,null,null,"Zdržení","Čas na trati","Výsledný čas","Body","VT","Postup","Diskvalifikace"]
[null,"Start. číslo","Pořadí","Přijmení","Jméno","Ročník","Oddíl","Přijmení","Jméno","Ročník","Oddíl",{"$f":"Nastavení!R13","v":"V"},{"$f":"Nastavení!S13","v":"S"},{"$f":"Nastavení!T13","v":"Oa"},{"$f":"Nastavení!U13","v":"Om"},{"$f":"Nastavení!V13","v":"LL"},{"$f":"Nastavení!W13","v":"U"},{"$f":"Nastavení!X13","v":"M"},{"$f":"Nastavení!Y13","v":"P"},{"$f":"Nastavení!Z13","v":"TT"},{"$f":"Nastavení!AA13","v":"D"},{"$f":"Nastavení!B24","v":"KPČ"},{"$f":"Nastavení!AE13","v":"Trať"},"TM",null,null,"[m]",{"$f":"L6","v":"V"},{"$f":"M6","v":"S"},{"$f":"O6","v":"Om"},{"$f":"P6","v":"LL"},{"$f":"Q6","v":"U"},{"$f":"R6","v":"M"},{"$f":"S6","v":"P"},null,null,null,null,null,null,null,"Důvod"]
[null,4,null,"Wágnerová","Magdalena",2003,"Kraslice",null,null,null,null,null,null,null,null,null,null,null,null,null,null,null,null,null,"0.06.00"]
[null,17,null,"Wágnerová","Marie",2001,"Kraslice",null,null,null,null,null,null,null,null,null,null,null,null,null,null,null,null,null,"0.45.00"]
[null,20,null,"Glosová","Kateřina",1992,"Tuláci Bukovany",null,null,null,null,null,null,null,null,null,null,null,null,null,null,null,null,null,"0.51.00"]

{"sheet":"MB","index":11,"n_rows":7,"n_cols":42,"rows_kept":7,"cut":false,"hidden":false,"merged":[[0,1,0,41],[3,1,3,41],[4,11,4,23],[4,27,4,33],[4,40,4,41]]}
[null,{"$f":"CONCATENATE('Seznam účastníků'!B1,\", \",'Seznam účastníků'!B2:C2,\" - \",'Seznam účastníků'!B3)","v":"Mistrovský závod Karlovarského kraje 2024, 06.04.2024 - Bukovany"}]
[]
[]
[null,"Muži B (MB)"]
[null,null,null,null,null,null,null,null,null,null,null,"Trestné minuty",null,null,null,null,null,null,null,null,null,null,null,null,"Start","Cíl","V","Zdržení v sekundách",null,null,null,null,null,null,"Zdržení","Čas na trati","Výsledný čas","Body","VT","Postup","Diskvalifikace"]
[null,"Start. číslo","Pořadí","Přijmení","Jméno","Ročník","Oddíl","Přijmení","Jméno","Ročník","Oddíl",{"$f":"Nastavení!R13","v":"V"},{"$f":"Nastavení!S13","v":"S"},{"$f":"Nastavení!T13","v":"Oa"},{"$f":"Nastavení!U13","v":"Om"},{"$f":"Nastavení!V13","v":"LL"},{"$f":"Nastavení!W13","v":"U"},{"$f":"Nastavení!X13","v":"M"},{"$f":"Nastavení!Y13","v":"P"},{"$f":"Nastavení!Z13","v":"TT"},{"$f":"Nastavení!AA13","v":"D"},{"$f":"Nastavení!B24","v":"KPČ"},{"$f":"Nastavení!AE13","v":"Trať"},"TM",null,null,"[m]",{"$f":"L6","v":"V"},{"$f":"M6","v":"S"},{"$f":"O6","v":"Om"},{"$f":"P6","v":"LL"},{"$f":"Q6","v":"U"},{"$f":"R6","v":"M"},{"$f":"S6","v":"P"},null,null,null,null,null,null,null,"Důvod"]
[null,18,null,"Wagner","Vojtěch",1962,"Kraslice",null,null,null,null,null,null,null,null,null,null,null,null,null,null,null,null,null,"0.48.00"]

{"sheet":"ŽB","index":12,"n_rows":7,"n_cols":42,"rows_kept":7,"cut":false,"hidden":false,"merged":[[0,1,0,41],[3,1,3,41],[4,11,4,23],[4,27,4,33],[4,40,4,41]]}
[null,{"$f":"CONCATENATE('Seznam účastníků'!B1,\", \",'Seznam účastníků'!B2:C2,\" - \",'Seznam účastníků'!B3)","v":"Mistrovský závod Karlovarského kraje 2024, 06.04.2024 - Bukovany"}]
[]
[]
[null,"Ženy B (ŽB)"]
[null,null,null,null,null,null,null,null,null,null,null,"Trestné minuty",null,null,null,null,null,null,null,null,null,null,null,null,"Start","Cíl","V","Zdržení v sekundách",null,null,null,null,null,null,"Zdržení","Čas na trati","Výsledný čas","Body","VT","Postup","Diskvalifikace"]
[null,"Start. číslo","Pořadí","Přijmení","Jméno","Ročník","Oddíl","Přijmení","Jméno","Ročník","Oddíl",{"$f":"Nastavení!R13","v":"V"},{"$f":"Nastavení!S13","v":"S"},{"$f":"Nastavení!T13","v":"Oa"},{"$f":"Nastavení!U13","v":"Om"},{"$f":"Nastavení!V13","v":"LL"},{"$f":"Nastavení!W13","v":"U"},{"$f":"Nastavení!X13","v":"M"},{"$f":"Nastavení!Y13","v":"P"},{"$f":"Nastavení!Z13","v":"TT"},{"$f":"Nastavení!AA13","v":"D"},{"$f":"Nastavení!B24","v":"KPČ"},{"$f":"Nastavení!AE13","v":"Trať"},"TM",null,null,"[m]",{"$f":"L6","v":"V"},{"$f":"M6","v":"S"},{"$f":"O6","v":"Om"},{"$f":"P6","v":"LL"},{"$f":"Q6","v":"U"},{"$f":"R6","v":"M"},{"$f":"S6","v":"P"},null,null,null,null,null,null,null,"Důvod"]
[null,6,null,"Procházková","Ladislava",1974,"Kraslice",null,null,null,null,null,null,null,null,null,null,null,null,null,null,null,null,null,"0.12.00"]

{"sheet":"D+D","index":13,"n_rows":9,"n_cols":42,"rows_kept":9,"cut":false,"hidden":false,"merged":[[0,1,0,41],[3,1,3,41],[4,11,4,23],[4,27,4,33],[4,40,4,41]]}
[null,{"$f":"CONCATENATE('Seznam účastníků'!B1,\", \",'Seznam účastníků'!B2:C2,\" - \",'Seznam účastníků'!B3)","v":"Mistrovský závod Karlovarského kraje 2024, 06.04.2024 - Bukovany"}]
[]
[]
[null,"Dítě s doprovodem (D+D)"]
[null,null,null,null,null,null,null,null,null,null,null,"Trestné minuty",null,null,null,null,null,null,null,null,null,null,null,null,"Start","Cíl","V","Zdržení v sekundách",null,null,null,null,null,null,"Zdržení","Čas na trati","Výsledný čas","Body","VT","Postup","Diskvalifikace"]
[null,"Start. číslo","Pořadí","Přijmení","Jméno","Ročník","Oddíl","Přijmení","Jméno","Ročník","Oddíl",{"$f":"Nastavení!R13","v":"V"},{"$f":"Nastavení!S13","v":"S"},{"$f":"Nastavení!T13","v":"Oa"},{"$f":"Nastavení!U13","v":"Om"},{"$f":"Nastavení!V13","v":"LL"},{"$f":"Nastavení!W13","v":"U"},{"$f":"Nastavení!X13","v":"M"},{"$f":"Nastavení!Y13","v":"P"},{"$f":"Nastavení!Z13","v":"TT"},{"$f":"Nastavení!AA13","v":"D"},{"$f":"Nastavení!B24","v":"KPČ"},{"$f":"Nastavení!AE13","v":"Trať"},"TM",null,null,"[m]",{"$f":"L6","v":"V"},{"$f":"M6","v":"S"},{"$f":"O6","v":"Om"},{"$f":"P6","v":"LL"},{"$f":"Q6","v":"U"},{"$f":"R6","v":"M"},{"$f":"S6","v":"P"},null,null,null,null,null,null,null,"Důvod"]
[null,2,null,"Blaschkeová","Nicol",2017,"Tuláci Bukovany",null,null,null,null,null,null,null,null,null,null,null,null,null,null,null,null,null,"0.03.00"]
[null,8,null,"Jetel","Martin",2017,"Pionýr Habartov",null,null,null,null,null,null,null,null,null,null,null,null,null,null,null,null,null,"0.18.00"]
[null,11,null,"Kováč","František",2016,"Pionýr Habartov",null,null,null,null,null,null,null,null,null,null,null,null,null,null,null,null,null,"0.27.00"]

{"sheet":"Krycí list","index":14,"n_rows":18,"n_cols":14,"rows_kept":18,"cut":false,"hidden":false,"merged":[[4,1,4,26]]}
[]
[]
[]
[]
[null,{"$f":"CONCATENATE('Seznam účastníků'!B1:F1)","v":"Mistrovský závod Karlovarského kraje 2024"}]
[]
[]
[null,"Pořadatel:  TOM Tuláci Bukovany",null,null,null,null,null,null,null,null,null,null,null,"KONTAKTY NA VEDOUCÍ ODDÍLŮ:"]
[null,null,null,null,null,null,null,null,null,null,null,null,null,"Tuláci Bukovany - Roman Glos, email  tulak.glos.r@seznam.cz , T: 724594621"]
[null,{"$f":"CONCATENATE(\"Místo konání: \",'Seznam účastníků'!B3:F3)","v":"Místo konání: Bukovany"},null,null,null,null,null,null,null,null,null,null,null,"Kraslice  -  Vojta Wagner , e-mail Vojtaw@seznam.cz T : 724964995"]
[null,null,null,null,null,null,null,null,null,null,null,null,null,"Pionýr Habartov -  František Kováč , e-mail: fanda.pionyr@seznam ,  777248705"]
[null,"Ředitel závodu: ",null,null,null,"Martina Glosová"]
[]
[null,"Hlavní rozhodčí: ",null,null,null,"Vojta Wágner"]
[]
[null,"Stavitel trati: ",null,null,null,"Roman Glos"]
[]
[null,"Počtářská komise :",null,null,null,"Luboš Glos"]

{"sheet":"Výsledková listina","index":15,"n_rows":72,"n_cols":27,"rows_kept":72,"cut":false,"hidden":false,"merged":[[29,6,29,18],[4,1,4,26],[6,6,6,18],[12,6,12,18],[18,6,18,18],[24,6,24,18],[62,6,62,18],[67,6,67,18],[34,6,34,18],[39,6,39,18],[45,6,45,18],[50,6,50,18],[57,6,57,18]]}
[]
[null,null,null,null,null,null,null,null,null,null,null,null,null,null,null,null,null,null,"Poslední načtení výsledkové listiny provedeno:","07.04.2024 12:48:32"]
[]
[]
[null,{"$f":"CONCATENATE(\"Výsledková listina pro \",'Seznam účastníků'!B1:F1,\" konaného dne \",'Seznam účastníků'!B2:F2,\" - \",'Seznam účastníků'!B3:F3)","v":"Výsledková listina pro Mistrovský závod Karlovarského kraje 2024 konaného dne 06.04.2024 - Bukovany"}]
[null,null,null,null,null,null,null,null,null,null,null,"Nejmladší žáci (NŽH)"]
[null,"Pořadí","Start.","Závodníci","Ročník","Oddíl","Trestné minuty",null,null,null,null,null,null,null,null,null,null,null,null,"Start","Cíl","Zdržení","Čas","Výsledný","Body","VT","Postup"]
[null,null,"číslo",null,null,null,"V","S","Oa","Om","LL","U","M","P","TT","D","KPČ","MKPČ","TM",null,null,null,"na trati","čas"]
[null,1,19,"Glos Dominik",2016,"Tuláci Bukovany","-","-","-",0,"ok",0,1,"-",0,0,0,null,1,"00:48:00","01:18:53","00:00:00","00:30:53","00:31:53",100]
[null,2,16,"Pražák  Leoš",2014,"Pionýr Habartov","-","-","-",1,"ok",2,1,"-",9,5,8,null,26,"00:42:00","01:10:21","00:00:00","00:28:21","00:54:21",29.5]
[]
[null,null,null,null,null,null,null,null,null,null,null,"Nejmladší žákyně (NŽD)"]
[null,"Pořadí","Start.","Závodníci","Ročník","Oddíl","Trestné minuty",null,null,null,null,null,null,null,null,null,null,null,null,"Start","Cíl","Zdržení","Čas","Výsledný","Body","VT","Postup"]
[null,null,"číslo",null,null,null,"V","S","Oa","Om","LL","U","M","P","TT","D","KPČ","MKPČ","TM",null,null,null,"na trati","čas"]
[null,1,15,"Forejtová Viktorie",2016,"Pionýr Habartov","-","-","-",0,"ok",2,2,"-",10,4,7,null,25,"00:39:00","01:13:04","00:00:00","00:34:04","00:59:04",100]
[null,2,10,"Forejtová Laura",2014,"Pionýr Habartov","-","-","-",1,"ok",2,2,"-",11,5,6,null,27,"00:24:00","01:02:40","00:00:00","00:38:40","01:05:40",88.8]
[]
[null,null,null,null,null,null,null,null,null,null,null,"Mladší žáci (MŽH)"]
[null,"Pořadí","Start.","Závodníci","Ročník","Oddíl","Trestné minuty",null,null,null,null,null,null,null,null,null,null,null,null,"Start","Cíl","Zdržení","Čas","Výsledný","Body","VT","Postup"]
[null,null,"číslo",null,null,null,"V","S","Oa","Om","LL","U","M","P","TT","D","KPČ","MKPČ","TM",null,null,null,"na trati","čas"]
[null,1,9,"Hanuš David",2012,"Tuláci Bukovany",2,"-","ok",0,"ok",2,2,"-",7,2,2,null,17,"00:21:00","01:04:05","00:00:00","00:43:05","01:00:05",100]
[null,2,14,"Kdolský Václav",2012,"Pionýr Habartov",0,"-","ok",1,"ok",2,2,"-",7,3,7,null,22,"00:36:00","01:19:56","00:00:00","00:43:56","01:05:56",90.3]
[]
[null,null,null,null,null,null,null,null,null,null,null,"Mladší žákyně (MŽD)"]
[null,"Pořadí","Start.","Závodníci","Ročník","Oddíl","Trestné minuty",null,null,null,null,null,null,null,null,null,null,null,null,"Start","Cíl","Zdržení","Čas","Výsledný","Body","VT","Postup"]
[null,null,"číslo",null,null,null,"V","S","Oa","Om","LL","U","M","P","TT","D","KPČ","MKPČ","TM",null,null,null,"na trati","čas"]
[null,1,13,"Richlíková Tereza",2012,"Pionýr Habartov",2,"-","ok",0,"ok",0,2,"-",11,4,8,null,27,"00:33:00","01:15:03","00:00:00","00:42:03","01:09:03",100]
[]
[null,null,null,null,null,null,null,null,null,null,null,"Starší žákyně (SŽD)"]
[null,"Pořadí","Start.","Závodníci","Ročník","Oddíl","Trestné minuty",null,null,null,null,null,null,null,null,null,null,null,null,"Start","Cíl","Zdržení","Čas","Výsledný","Body","VT","Postup"]
[null,null,"číslo",null,null,null,"V","S","Oa","Om","LL","U","M","P","TT","D","KPČ","MKPČ","TM",null,null,null,"na trati","čas"]
[null,1,5,"Jelínková Nikola",2011,"Pionýr Habartov",2,"-","ok",0,"ok",2,2,"-",11,3,8,null,28,"00:09:00","00:43:49","00:00:00","00:34:49","01:02:49",100]
[]
[null,null,null,null,null,null,null,null,null,null,null,"Mladší dorostenci (MDH)"]
[null,"Pořadí","Start.","Závodníci","Ročník","Oddíl","Trestné minuty",null,null,null,null,null,null,null,null,null,null,null,null,"Start","Cíl","Zdržení","Čas","Výsledný","Body","VT","Postup"]
[null,null,"číslo",null,null,null,"V","S","Oa","Om","LL","U","M","P","TT","D","KPČ","MKPČ","TM",null,null,null,"na trati","čas"]
[null,1,1,"Pouzar Jakub",2008,"Kraslice",0,"-","ok",0,"ok",2,2,"-",0,1,0,null,5,"00:00:00","00:23:35","00:00:00","00:23:35","00:28:35",100]
[]
[null,null,null,null,null,null,null,null,null,null,null,"Mladší dorostenky (MDD)"]
[null,"Pořadí","Start.","Závodníci","Ročník","Oddíl","Trestné minuty",null,null,null,null,null,null,null,null,null,null,null,null,"Start","Cíl","Zdržení","Čas","Výsledný","Body","VT","Postup"]
[null,null,"číslo",null,null,null,"V","S","Oa","Om","LL","U","M","P","TT","D","KPČ","MKPČ","TM",null,null,null,"na trati","čas"]
[null,1,12,"Kováčová  Simona",2009,"Pionýr Habartov",0,"-","ok",0,"ok",0,2,"-",0,1,0,null,3,"00:30:00","01:00:31","00:00:00","00:30:31","00:33:31",100]
[null,2,7,"Richlíková Adéla",2009,"Pionýr Habartov",0,"-","ok",0,"ok",2,1,"-",2,2,1,null,8,"00:15:00","00:48:39","00:00:00","00:33:39","00:41:39",75.7]
[]
[null,null,null,null,null,null,null,null,null,null,null,"Muži A (MA)"]
[null,"Pořadí","Start.","Závodníci","Ročník","Oddíl","Trestné minuty",null,null,null,null,null,null,null,null,null,null,null,null,"Start","Cíl","Zdržení","Čas","Výsledný","Body","VT","Postup"]
[null,null,"číslo",null,null,null,"V","S","Oa","Om","LL","U","M","P","TT","D","KPČ","MKPČ","TM",null,null,null,"na trati","čas"]
[null,1,3,"Brabec Jiří",2000,"Kraslice",1,"-","ok",0,"ok",0,3,"-",0,0,0,null,4,"00:06:00","00:40:05","00:00:00","00:34:05","00:38:05",100]
[]
[null,null,null,null,null,null,null,null,null,null,null,"Ženy A (ŽA)"]
[null,"Pořadí","Start.","Závodníci","Ročník","Oddíl","Trestné minuty",null,null,null,null,null,null,null,null,null,null,null,null,"Start","Cíl","Zdržení","Čas","Výsledný","Body","VT","Postup"]
[null,null,"číslo",null,null,null,"V","S","Oa","Om","LL","U","M","P","TT","D","KPČ","MKPČ","TM",null,null,null,"na trati","čas"]
[null,1,17,"Wágnerová Marie",2001,"Kraslice",1,"-","ok",0,"ok",0,0,"-",0,0,0,null,1,"00:45:00","01:05:34","00:00:00","00:20:34","00:21:34",100,"II."]
[null,2,20,"Glosová Kateřina",1992,"Tuláci Bukovany",0,"-","ok",0,"ok",0,2,"-",0,1,1,null,4,"00:51:00","01:15:22","00:00:00","00:24:22","00:28:22",68.5]
[null,3,4,"Wágnerová Magdalena",2003,"Kraslice",1,"-","ok",0,"ok",0,1,"-",0,0,0,null,2,"00:06:00","00:39:43","00:00:00","00:33:43","00:35:43",34.4]
[]
[null,null,null,null,null,null,null,null,null,null,null,"Muži B (MB)"]
[null,"Pořadí","Start.","Závodníci","Ročník","Oddíl","Trestné minuty",null,null,null,null,null,null,null,null,null,null,null,null,"Start","Cíl","Zdržení","Čas","Výsledný","Body","VT","Postup"]
[null,null,"číslo",null,null,null,"V","S","Oa","Om","LL","U","M","P","TT","D","KPČ","MKPČ","TM",null,null,null,"na trati","čas"]
[null,1,18,"Wagner Vojtěch",1962,"Kraslice",0,"-","ok",0,"ok",0,1,"-",0,0,0,null,1,"00:48:00","01:28:38","00:00:00","00:40:38","00:41:38",100]
[]
[null,null,null,null,null,null,null,null,null,null,null,"Ženy B (ŽB)"]
[null,"Pořadí","Start.","Závodníci","Ročník","Oddíl","Trestné minuty",null,null,null,null,null,null,null,null,null,null,null,null,"Start","Cíl","Zdržení","Čas","Výsledný","Body","VT","Postup"]
[null,null,"číslo",null,null,null,"V","S","Oa","Om","LL","U","M","P","TT","D","KPČ","MKPČ","TM",null,null,null,"na trati","čas"]
[null,1,6,"Procházková Ladislava",1974,"Kraslice",0,"-","ok",0,"ok",0,1,"-",0,0,0,null,1,"00:12:00","00:40:28","00:00:00","00:28:28","00:29:28",100]
[null,null,null,null,null,null,9]
[null,null,null,null,null,null,null,null,null,null,null,"Dítě s doprovodem (D+D)"]
[null,"Pořadí","Start.","Závodníci","Ročník","Oddíl","Trestné minuty",null,null,null,null,null,null,null,null,null,null,null,null,"Start","Cíl","Zdržení","Čas","Výsledný","Body","VT","Postup"]
[null,null,"číslo",null,null,null,"V","S","Oa","Om","LL","U","M","P","TT","D","KPČ","MKPČ","TM",null,null,null,"na trati","čas"]
[null,1,2,"Blaschkeová Nicol",2017,"Tuláci Bukovany","-","-","-",0,"ok",0,0,"-",0,0,0,null,0,"00:03:00","00:27:35","00:00:00","00:24:35","00:24:35"]
[null,2,11,"Kováč František",2016,"Pionýr Habartov","-","-","-",0,"ok",0,0,"-",5,1,3,null,9,"00:27:00","01:00:10","00:00:00","00:33:10","00:42:10"]
[null,3,8,"Jetel Martin",2017,"Pionýr Habartov","-","-","-",0,"ok",0,1,"-",8,2,9,null,20,"00:18:00","00:52:29","00:00:00","00:34:29","00:54:29"]

{"sheet":"Pohár","index":16,"n_rows":24,"n_cols":3,"rows_kept":24,"cut":false,"hidden":false,"merged":[]}
[]
[]
[null,"Poslední načtení poháru provedeno 07.04.2024 16:00:42"]
[]
[null,"Modrý pohár (pouze modrá trať)"]
[null,"Oddíl","Body"]
[null,"Pionýr Habartov",218.3]
[null,"Tuláci Bukovany",100]
[]
[null,"Bílý pohár (pouze bílá trať)"]
[null,"Oddíl","Body"]
[null,"Pionýr Habartov",290.3]
[null,"Tuláci Bukovany",100]
[]
[null,"Bílý pohár"]
[null,"Oddíl","Body"]
[null,"Pionýr Habartov",479.1]
[null,"Tuláci Bukovany",200]
[]
[null,"Červený pohár"]
[null,"Oddíl","Body"]
[null,"Kraslice",500]
[null,"Pionýr Habartov",175.7]
[null,"Tuláci Bukovany",68.5]

{"sheet":"Zdroj","index":17,"n_rows":6,"n_cols":42,"rows_kept":6,"cut":false,"hidden":true,"merged":[[0,1,0,41],[3,1,3,41],[4,11,4,23],[4,27,4,33],[4,40,4,41]]}
[null,{"$f":"CONCATENATE('Seznam účastníků'!B1,\", \",'Seznam účastníků'!B2:C2,\" - \",'Seznam účastníků'!B3)","v":"Mistrovský závod Karlovarského kraje 2024, 06.04.2024 - Bukovany"}]
[]
[]
[null,"Nejmladší žáci (NŽH)"]
[null,null,null,null,null,null,null,null,null,null,null,"Trestné minuty",null,null,null,null,null,null,null,null,null,null,null,null,"Start","Cíl","V","Zdržení v sekundách",null,null,null,null,null,null,"Zdržení","Čas na trati","Výsledný čas","Body","VT","Postup","Diskvalifikace"]
[null,"Start. číslo","Pořadí","Přijmení","Jméno","Ročník","Oddíl","Přijmení","Jméno","Ročník","Oddíl",{"$f":"Nastavení!R13","v":"V"},{"$f":"Nastavení!S13","v":"S"},{"$f":"Nastavení!T13","v":"Oa"},{"$f":"Nastavení!U13","v":"Om"},{"$f":"Nastavení!V13","v":"LL"},{"$f":"Nastavení!W13","v":"U"},{"$f":"Nastavení!X13","v":"M"},{"$f":"Nastavení!Y13","v":"P"},{"$f":"Nastavení!Z13","v":"TT"},{"$f":"Nastavení!AA13","v":"D"},{"$f":"Nastavení!B24","v":"KPČ"},{"$f":"Nastavení!AE13","v":"Trať"},"TM",null,null,"[m]",{"$f":"L6","v":"V"},{"$f":"M6","v":"S"},{"$f":"O6","v":"Om"},{"$f":"P6","v":"LL"},{"$f":"Q6","v":"U"},{"$f":"R6","v":"M"},{"$f":"S6","v":"P"},null,null,null,null,null,null,null,"Důvod"]